bitfinex/quotes_SOLUSD_20230702
["timestamp","ask_amount","ask_price","bid_price","bid_amount"]
[1688321118663,22.031,19.201,19.19,98.7291]
[1688321118863,22.031,19.201,19.193,22.038]
[1688321119061,22.031,19.201,19.194,55.0]
[1688321119268,22.031,19.201,19.189,55.0]
[1688321119269,22.031,19.201,19.155,26.35959033]
[1688321119563,22.031,19.201,19.187,22.046]
[1688321120160,22.031,19.201,19.187,32.88319922]
[1688321120548,22.031,19.201,19.188,10.83719922]
[1688321120750,22.031,19.201,19.191,78.782]
[1688321120955,22.031,19.201,19.192,55.0]
[1688321121155,22.031,19.201,19.194,22.037]
[1688321121355,22.031,19.201,19.195,75.0]
[1688321121656,56.685,19.212,19.196,22.034]
[1688321121865,56.685,19.212,19.197,55.0]
[1688321122065,22.024,19.206,19.197,111.726]
[1688321122361,22.024,19.206,19.198,22.033]
[1688321122557,22.024,19.206,19.201,22.029]
[1688321122760,22.024,19.206,19.202,77.028]
[1688321123066,56.688,19.211,19.203,55.0]
[1688321123275,56.67,19.217,19.205,22.025]
[1688321123446,22.019,19.211,19.206,55.0]
[1688321123653,22.019,19.211,19.207,22.022]
[1688321123949,22.019,19.211,19.208,55.0]
[1688321125263,22.019,19.211,19.2,98.5478]
[1688321125453,22.019,19.211,19.201,55.0]
[1688321126066,22.019,19.211,19.201,77.029]
[1688321126647,22.016,19.213,19.206,22.023]
[1688321126867,22.016,19.213,19.207,55.0]
[1688321127072,64.63412236,19.22,19.208,22.021]
[1688321127249,7.97312236,19.22,19.209,55.0]
[1688321127447,52.57803517,19.229,19.209,77.02]
[1688321127448,22.015,19.214,19.209,77.02]
[1688321128170,56.661,19.22,19.209,77.02]
[1688321128363,22.015,19.215,19.209,77.02]
[1688321128545,22.015,19.215,19.209,55.0]
[1688321128951,22.015,19.215,19.209,77.02]
[1688321129147,7.97312236,19.222,19.209,77.02]
[1688321129148,22.012,19.217,19.209,77.02]
[1688321130670,56.649,19.224,19.209,77.02]
[1688321130977,22.009,19.219,19.209,77.02]
[1688321131354,22.014,19.215,19.206,22.024]
[1688321131963,22.009,19.22,19.21,78.704]
[1688321132661,22.009,19.22,19.213,22.015]
[1688321132864,22.009,19.22,19.214,55.0]
[1688321133058,51.81411912,19.233,19.214,55.0]
[1688321133059,26.16039095,19.236,19.214,77.014]
[1688321133263,21.997,19.23,19.215,20.0]
[1688321133461,125.325,19.23,19.217,22.01]
[1688321133662,125.325,19.23,19.218,55.0]
[1688321133960,21.997,19.23,19.218,77.01]
[1688321134151,21.997,19.23,19.218,237.067]
[1688321134460,21.997,19.23,19.219,10.83719922]
[1688321134659,21.997,19.23,19.222,22.005]
[1688321134855,26.28942386,19.243,19.222,22.005]
[1688321135057,11.38,19.25,19.223,65.83719922]
[1688321135268,11.38,19.25,19.227,21.999]
[1688321135269,21.989,19.237,19.227,21.999]
[1688321135456,21.989,19.237,19.228,55.0]
[1688321135657,56.6,19.241,19.23,21.996]
[1688321135866,56.6,19.241,19.231,55.0]
[1688321136062,103.24,19.247,19.232,21.994]
[1688321136365,21.98,19.245,19.233,55.0]
[1688321136559,21.98,19.245,19.231,76.995]
[1688321137158,21.98,19.245,19.225,10.83719922]
[1688321137359,20.0,19.244,19.224,22.003]
[1688321137561,181.878,19.238,19.224,22.003]
[1688321137770,181.878,19.238,19.225,20.0]
[1688321138071,181.878,19.238,19.228,21.998]
[1688321138277,181.878,19.238,19.225,20.0]
[1688321138579,181.878,19.238,19.223,42.003]
[1688321138877,27.97312236,19.237,19.22,22.007]
[1688321139080,181.935,19.232,19.218,99.2191]
[1688321139276,181.935,19.232,19.215,67.51019922]
[1688321139575,181.935,19.232,19.22,22.008]
[1688321140174,78.618,19.232,19.22,32.84519922]
[1688321140471,21.994,19.232,19.221,10.83719922]
[1688321140665,21.994,19.232,19.224,22.003]
[1688321140987,21.991,19.236,19.228,21.998]
[1688321141161,11.38,19.25,19.229,55.0]
[1688321141162,21.986,19.239,19.229,55.0]
[1688321141360,21.988,19.238,19.231,21.995]
[1688321141578,21.988,19.238,19.232,55.0]
[1688321141875,21.988,19.238,19.233,21.992]
[1688321142068,21.988,19.238,19.234,76.992]
[1688321142271,21.988,19.238,19.234,55.0]
[1688321142968,21.987,19.238,19.234,55.0]
[1688321143177,11.46,19.26,19.234,55.0]
[1688321143490,45.5,19.258,19.235,52.82719922]
[1688321143668,125.186,19.252,19.236,55.0]
[1688321143871,181.804,19.246,19.229,21.996]
[1688321144073,181.854,19.241,19.23,76.996]
[1688321144875,181.854,19.241,19.23,21.996]
[1688321145081,20.0,19.24,19.225,22.001]
[1688321145288,78.604,19.236,19.225,22.001]
[1688321145578,21.994,19.232,19.225,22.001]
[1688321145970,20.0,19.24,19.225,22.001]
[1688321146168,21.994,19.232,19.225,22.001]
[1688321146372,103.298,19.236,19.225,22.001]
[1688321146373,21.99,19.236,19.225,22.001]
[1688321146585,56.598,19.241,19.225,22.001]
[1688321146979,21.99,19.236,19.225,22.001]
[1688321147686,21.99,19.236,19.228,21.998]
[1688321147882,21.99,19.236,19.229,55.0]
[1688321148083,21.99,19.236,19.229,76.997]
[1688321148785,21.99,19.236,19.229,55.0]
[1688321148991,21.99,19.236,19.228,76.999]
[1688321150685,21.99,19.236,19.228,55.0]
[1688321150885,21.99,19.236,19.228,76.999]
[1688321151193,21.99,19.236,19.215,103.408]
[1688321151485,21.99,19.236,19.222,22.005]
[1688321151486,21.995,19.232,19.222,22.005]
[1688321151880,20.0,19.235,19.222,22.005]
[1688321152395,11.31,19.24,19.222,22.005]
[1688321152396,103.271,19.241,19.222,32.84219922]
[1688321152583,21.987,19.239,19.223,55.0]
[1688321152778,21.987,19.239,19.227,21.999]
[1688321153090,21.987,19.239,19.229,21.996]
[1688321153291,21.987,19.239,19.228,55.0]
[1688321153292,21.987,19.239,19.23,76.996]
[1688321153506,21.987,19.239,19.231,55.0]
[1688321153867,20.0,19.238,19.226,22.001]
[1688321154071,29.9796833,19.239,19.225,22.002]
[1688321154285,21.992,19.235,19.226,22.001]
[1688321154491,21.995,19.232,19.226,22.001]
[1688321154679,21.995,19.232,19.221,56.655]
[1688321154680,21.995,19.232,19.224,22.002]
[1688321154882,21.995,19.232,19.224,22.003]
[1688321155573,21.995,19.232,19.227,22.0]
[1688321155779,21.995,19.232,19.228,55.0]
[1688321156192,21.994,19.233,19.228,76.998]
[1688321156780,56.612,19.237,19.228,76.998]
[1688321157094,21.991,19.235,19.228,55.0]
[1688321157277,21.997,19.23,19.216,103.399]
[1688321158177,21.997,19.23,19.223,22.004]
[1688321158482,21.997,19.23,19.224,55.0]
[1688321158685,21.997,19.23,19.224,77.002]
[1688321159387,21.99,19.236,19.225,20.0]
[1688321159595,21.989,19.237,19.228,78.633]
[1688321159791,21.989,19.237,19.229,55.0]
[1688321160094,21.989,19.237,19.231,21.995]
[1688321160392,21.989,19.237,19.232,76.993]
[1688321160591,56.596,19.242,19.233,55.0]
[1688321160785,21.985,19.24,19.234,21.992]
[1688321161093,21.983,19.242,19.235,55.0]
[1688321161286,103.231,19.248,19.237,21.988]
[1688321161287,56.582,19.247,19.237,21.988]
[1688321161599,21.98,19.245,19.238,55.0]
[1688321161783,21.98,19.245,19.238,21.987]
[1688321162100,21.98,19.245,19.239,55.0]
[1688321162294,21.98,19.245,19.236,21.989]
[1688321162499,20.0,19.244,19.237,55.0]
[1688321162693,21.983,19.242,19.237,55.0]
[1688321162896,21.983,19.242,19.236,55.0]
[1688321163678,21.983,19.242,19.225,22.001]
[1688321163884,11.38,19.24,19.216,56.669]
[1688321164098,181.928,19.233,19.222,22.005]
[1688321164700,78.615,19.233,19.222,22.005]
[1688321165083,21.993,19.233,19.223,55.0]
[1688321165387,56.596,19.242,19.226,22.001]
[1688321165700,78.579,19.242,19.231,21.995]
[1688321165883,78.579,19.242,19.234,21.991]
[1688321166083,78.579,19.242,19.235,55.0]
[1688321166494,8.05410177,19.255,19.235,55.0]
[1688321166495,21.982,19.244,19.235,76.99]
[1688321166701,11.46,19.26,19.235,144.44219922]
[1688321166995,21.977,19.247,19.239,21.986]
[1688321167192,21.977,19.247,19.24,55.0]
[1688321167392,21.977,19.247,19.24,76.984]
[1688321169596,21.973,19.251,19.24,180.258]
[1688321169793,56.556,19.256,19.24,180.258]
[1688321170205,21.974,19.25,19.24,180.258]
[1688321170797,21.974,19.25,19.24,76.984]
[1688321170996,21.974,19.25,19.24,21.984]
[1688321171307,125.194,19.25,19.239,21.986]
[1688321172696,124.694,19.25,19.24,55.0]
[1688321173209,124.694,19.25,19.24,76.985]
[1688321173701,124.694,19.25,19.24,55.0]
[1688321173897,124.694,19.25,19.24,76.984]
[1688321174604,21.474,19.25,19.24,76.984]
[1688321175499,21.474,19.25,19.239,21.986]
[1688321176894,21.474,19.25,19.243,21.982]
[1688321177107,21.474,19.25,19.244,55.0]
[1688321177696,124.694,19.25,19.236,93.2924]
[1688321177907,124.694,19.25,19.234,56.615]
[1688321178108,132.74810177,19.25,19.235,20.0]
[1688321179003,132.74810177,19.25,19.238,21.987]
[1688321179004,21.474,19.25,19.238,21.987]
[1688321180107,56.559,19.255,19.242,78.575]
[1688321180108,21.973,19.251,19.242,78.575]
[1688321180413,21.973,19.251,19.245,21.979]
[1688321180905,21.973,19.251,19.24,21.985]
[1688321180906,125.188,19.251,19.24,21.985]
[1688321181295,21.973,19.251,19.24,21.985]
[1688321182509,21.973,19.251,19.241,55.0]
[1688321182710,21.973,19.251,19.244,21.98]
[1688321182910,56.556,19.256,19.245,75.0]
[1688321183093,21.971,19.253,19.248,21.976]
[1688321183401,21.971,19.253,19.249,76.974]
[1688321183711,21.971,19.253,19.25,55.0]
[1688321184009,56.537,19.262,19.25,76.973]
[1688321185090,78.497,19.262,19.25,76.973]
[1688321187794,78.497,19.262,19.25,21.973]
[1688321188095,78.497,19.262,19.249,116.0327]
[1688321188408,86.55110177,19.262,19.249,21.975]
[1688321188791,21.96,19.262,19.249,21.975]
[1688321189092,21.959,19.264,19.254,78.528]
[1688321189313,21.959,19.264,19.255,75.0]
[1688321189621,21.959,19.264,19.257,21.965]
[1688321189992,21.959,19.264,19.258,55.0]
[1688321190196,21.956,19.266,19.259,21.962]
[1688321190405,56.509,19.271,19.26,55.0]
[1688321190406,21.955,19.267,19.26,55.0]
[1688321190610,21.955,19.267,19.262,21.96]
[1688321190910,21.955,19.267,19.264,21.957]
[1688321191418,21.952,19.27,19.265,21.955]
[1688321191600,21.952,19.269,19.265,21.955]
[1688321191912,21.952,19.269,19.266,55.0]
[1688321193197,21.452,19.269,19.257,56.548]
[1688321193403,21.452,19.269,19.253,151.3736]
[1688321193594,21.452,19.269,19.255,21.967]
[1688321193795,29.50610177,19.269,19.255,21.967]
[1688321194310,78.487,19.265,19.253,21.97]
[1688321194510,78.487,19.265,19.24,11.38]
[1688321194511,78.487,19.265,19.252,21.971]
[1688321194698,78.502,19.261,19.252,21.971]
[1688321195211,78.502,19.261,19.25,21.973]
[1688321196503,78.502,19.261,19.251,55.0]
[1688321196810,78.502,19.261,19.253,21.97]
[1688321197019,78.502,19.261,19.254,76.969]
[1688321197309,78.502,19.261,19.25,21.974]
[1688321197499,78.502,19.261,19.248,21.975]
[1688321197900,78.502,19.261,19.247,21.977]
[1688321199203,78.502,19.261,19.248,55.0]
[1688321199404,78.502,19.261,19.251,21.972]
[1688321199604,78.502,19.261,19.252,55.0]
[1688321200307,78.502,19.261,19.241,56.596]
[1688321200510,86.55610177,19.261,19.242,20.0]
[1688321200920,19.43410177,19.26,19.238,103.155]
[1688321201215,181.733,19.254,19.24,21.984]
[1688321201800,181.733,19.254,19.24,78.584]
[1688321202201,78.531,19.254,19.24,78.584]
[1688321202414,78.531,19.254,19.238,103.282]
[1688321202415,78.531,19.254,19.244,21.979]
[1688321202596,78.531,19.254,19.242,56.594]
[1688321202597,78.531,19.254,19.247,21.977]
[1688321202999,78.531,19.254,19.248,55.0]
[1688321203921,21.97,19.254,19.248,55.0]
[1688321204109,21.967,19.256,19.248,21.975]
[1688321204311,21.967,19.256,19.249,55.0]
[1688321204609,21.965,19.258,19.251,21.972]
[1688321204807,21.965,19.258,19.253,21.969]
[1688321205011,21.965,19.258,19.254,55.0]
[1688321205210,8.05410177,19.267,19.254,55.0]
[1688321205211,44.91,19.28,19.256,21.966]
[1688321205418,103.115,19.27,19.261,21.96]
[1688321205804,181.578,19.27,19.262,55.0]
[1688321206113,189.63210177,19.27,19.258,21.964]
[1688321206420,189.63210177,19.27,19.257,21.965]
[1688321206725,8.05410177,19.269,19.258,55.0]
[1688321207017,78.481,19.266,19.258,55.0]
[1688321207806,78.481,19.266,19.256,21.966]
[1688321207807,78.481,19.266,19.257,55.0]
[1688321208009,78.481,19.266,19.257,76.965]
[1688321208211,21.956,19.266,19.257,76.965]
[1688321211224,21.956,19.266,19.257,21.965]
[1688321211407,21.959,19.263,19.255,21.967]
[1688321211608,8.05410177,19.266,19.258,21.963]
[1688321211807,56.52,19.268,19.258,21.963]
[1688321212007,21.956,19.265,19.258,21.963]
[1688321212210,21.956,19.265,19.25,22.4]
[1688321212211,181.672,19.26,19.249,56.559]
[1688321212410,78.504,19.26,19.25,21.973]
[1688321212712,21.961,19.261,19.25,21.973]
[1688321212911,20.0,19.264,19.25,21.973]
[1688321213308,21.958,19.264,19.25,44.473]
[1688321213511,21.958,19.264,19.251,75.0]
[1688321213709,21.958,19.264,19.254,78.525]
[1688321214005,21.953,19.268,19.26,21.962]
[1688321214212,21.953,19.268,19.261,55.0]
[1688321214416,21.953,19.268,19.259,21.962]
[1688321214618,21.953,19.268,19.26,55.0]
[1688321215205,21.953,19.268,19.259,55.0]
[1688321215425,21.953,19.268,19.259,76.963]
[1688321218723,21.953,19.268,19.255,20.0]
[1688321218924,21.953,19.268,19.251,159.779]
[1688321218925,20.0,19.267,19.254,21.969]
[1688321219120,78.491,19.264,19.254,21.969]
[1688321219515,78.491,19.264,19.252,21.971]
[1688321220728,86.54510177,19.264,19.251,118.148]
[1688321221326,86.54510177,19.264,19.249,21.974]
[1688321222328,181.691,19.258,19.246,93.4767]
[1688321222631,181.691,19.258,19.246,21.978]
[1688321223508,189.74510177,19.258,19.24,56.599]
[1688321223714,181.752,19.252,19.238,93.4767]
[1688321223914,181.752,19.252,19.238,21.987]
[1688321224519,181.752,19.252,19.232,151.4061]
[1688321224835,181.752,19.252,19.237,21.988]
[1688321225214,78.539,19.252,19.237,21.988]
[1688321225616,78.539,19.252,19.238,55.0]
[1688321225916,78.539,19.252,19.24,21.984]
[1688321226124,78.539,19.252,19.241,55.0]
[1688321226620,78.539,19.252,19.24,55.0]
[1688321226928,78.539,19.252,19.239,55.0]
[1688321227128,78.539,19.252,19.236,21.988]
[1688321227628,86.59310177,19.252,19.236,21.988]
[1688321228024,8.05410177,19.251,19.235,21.991]
[1688321228229,181.801,19.247,19.235,21.991]
[1688321229717,181.801,19.247,19.232,94.7841]
[1688321229923,20.0,19.246,19.232,94.7841]
[1688321230123,181.842,19.242,19.231,21.994]
[1688321231032,181.842,19.242,19.232,55.0]
[1688321231231,181.842,19.242,19.232,76.993]
[1688321231728,181.842,19.242,19.228,92.7846]
[1688321231938,181.842,19.242,19.228,21.998]
[1688321234033,181.842,19.242,19.229,55.0]
[1688321234334,181.842,19.242,19.231,21.995]
[1688321234528,181.842,19.242,19.232,55.0]
[1688321234838,181.842,19.242,19.232,76.994]
[1688321235036,181.842,19.242,19.232,55.0]
[1688321235336,181.842,19.242,19.231,55.0]
[1688321235740,181.842,19.242,19.222,458.95]
[1688321235927,189.89610177,19.242,19.226,22.001]
[1688321236123,181.842,19.242,19.226,22.001]
[1688321237030,181.842,19.242,19.227,55.0]
[1688321237230,181.842,19.242,19.231,21.995]
[1688321237433,181.842,19.242,19.232,55.0]
[1688321238932,181.842,19.242,19.231,55.0]
[1688321239233,181.842,19.242,19.231,76.995]
[1688321240031,181.842,19.242,19.222,55.0]
[1688321240032,55.0,19.241,19.218,103.392]
[1688321240231,181.909,19.235,19.223,22.004]
[1688321240433,78.623,19.231,19.223,22.004]
[1688321240643,78.623,19.231,19.222,22.005]
[1688321241030,78.623,19.231,19.221,22.006]
[1688321242138,78.623,19.231,19.222,55.0]
[1688321242343,78.623,19.231,19.222,77.005]
[1688321243434,21.996,19.231,19.222,77.005]
[1688321244736,21.996,19.231,19.218,22.01]
[1688321246031,21.996,19.231,19.219,55.0]
[1688321246743,21.996,19.231,19.219,77.009]
[1688321247125,21.996,19.231,19.219,55.0]
[1688321247441,21.996,19.231,19.218,55.0]
[1688321247647,21.996,19.231,19.218,77.01]
[1688321248848,21.996,19.231,19.218,22.01]
[1688321249034,21.996,19.231,19.214,95.9513]
[1688321249240,21.996,19.231,19.215,20.0]
[1688321249832,21.996,19.231,19.218,22.01]
[1688321250347,21.996,19.231,19.219,55.0]
[1688321250650,21.996,19.231,19.22,22.007]
[1688321250947,21.996,19.231,19.221,55.0]
[1688321252235,21.996,19.231,19.212,160.102]
[1688321252438,21.996,19.231,19.217,22.011]
[1688321253543,21.996,19.231,19.218,55.0]
[1688321253841,21.996,19.231,19.219,22.008]
[1688321254046,21.996,19.231,19.22,55.0]
[1688321256039,21.996,19.231,19.22,77.007]
[1688321259351,21.996,19.231,19.22,55.0]
[1688321259661,21.996,19.231,19.219,22.009]
[1688321261038,21.996,19.231,19.22,55.0]
[1688321261238,21.996,19.231,19.223,22.004]
[1688321261446,21.996,19.231,19.224,55.0]
[1688321261649,21.996,19.231,19.224,77.003]
[1688321261854,56.599,19.241,19.225,20.0]
[1688321262060,21.992,19.235,19.229,21.997]
[1688321262243,21.99,19.236,19.23,55.0]
[1688321262654,56.596,19.242,19.23,76.996]
[1688321263044,21.99,19.236,19.23,76.996]
[1688321264954,21.987,19.239,19.23,76.996]
[1688321267338,21.987,19.239,19.222,56.653]
[1688321267544,30.16576586,19.239,19.225,22.001]
[1688321268658,30.16576586,19.239,19.226,55.0]
[1688321268858,30.16576586,19.239,19.226,77.001]
[1688321269255,21.987,19.239,19.226,77.001]
[1688321273667,21.987,19.239,19.226,55.0]
[1688321274061,21.987,19.239,19.225,55.0]
[1688321274862,21.987,19.239,19.225,22.002]
[1688321276159,21.987,19.239,19.226,55.0]
[1688321276367,21.987,19.239,19.226,77.0]
[1688321277964,21.987,19.239,19.226,55.0]
[1688321278263,21.987,19.239,19.223,20.0]
[1688321278469,21.987,19.239,19.224,20.0]
[1688321278651,21.987,19.239,19.224,42.003]
[1688321279957,21.987,19.239,19.229,21.997]
[1688321280164,21.987,19.239,19.231,21.995]
[1688321280461,21.987,19.239,19.23,21.995]
[1688321280668,21.987,19.239,19.232,55.0]
[1688321281168,21.987,19.239,19.231,55.0]
[1688321283268,21.987,19.239,19.227,22.0]
[1688321283452,21.987,19.239,19.228,55.0]
[1688321284263,21.987,19.239,19.228,76.998]
[1688321286368,21.987,19.239,19.228,133.634]
[1688321286754,21.987,19.239,19.229,93.8039]
[1688321286949,21.987,19.239,19.232,21.994]
[1688321287153,21.987,19.239,19.233,55.0]
[1688321287359,21.987,19.239,19.234,21.991]
[1688321287558,21.987,19.239,19.235,55.0]
[1688321287966,21.987,19.239,19.235,76.99]
[1688321289073,21.987,19.239,19.229,93.8039]
[1688321289251,21.987,19.239,19.231,21.995]
[1688321289457,21.987,19.239,19.229,93.8039]
[1688321289961,21.987,19.239,19.229,115.8009]
[1688321290969,21.987,19.239,19.23,55.0]
[1688321291168,21.987,19.239,19.232,21.993]
[1688321291475,21.987,19.239,19.233,55.0]
[1688321291659,21.987,19.239,19.234,21.991]
[1688321291972,22.5,19.26,19.235,75.0]
[1688321292199,103.166,19.261,19.242,21.982]
[1688321292481,103.166,19.261,19.243,75.0]
[1688321292780,21.967,19.256,19.248,21.975]
[1688321293078,21.967,19.256,19.25,21.972]
[1688321293260,21.967,19.256,19.251,76.972]
[1688321293581,21.967,19.256,19.252,55.0]
[1688321293759,21.967,19.256,19.252,76.971]
[1688321294165,21.967,19.256,19.252,55.0]
[1688321294475,21.967,19.256,19.253,55.0]
[1688321294675,21.967,19.256,19.252,55.0]
[1688321294878,56.536,19.262,19.252,76.971]
[1688321295080,21.965,19.258,19.252,76.971]
[1688321297479,78.512,19.258,19.248,21.976]
[1688321297669,78.512,19.258,19.246,21.977]
[1688321298766,21.965,19.258,19.246,21.977]
[1688321299083,21.965,19.258,19.247,55.0]
[1688321299266,21.965,19.258,19.25,21.973]
[1688321299471,21.965,19.258,19.251,55.0]
[1688321299674,21.965,19.258,19.251,76.972]
[1688321300368,21.963,19.26,19.251,76.972]
[1688321301582,21.96,19.263,19.251,76.972]
[1688321304268,125.111,19.263,19.251,76.972]
[1688321305275,125.111,19.263,19.251,21.972]
[1688321306468,125.111,19.263,19.253,21.969]
[1688321306673,125.111,19.263,19.254,55.0]
[1688321307179,21.96,19.263,19.254,76.968]
[1688321307484,21.96,19.263,19.255,20.0]
[1688321307687,21.96,19.263,19.254,55.0]
[1688321308969,21.96,19.263,19.254,76.969]
[1688321309271,21.96,19.263,19.254,55.0]
[1688321309577,21.96,19.263,19.251,95.2024]
[1688321310082,30.13876586,19.263,19.244,56.587]
[1688321310283,21.96,19.263,19.244,21.98]
[1688321310474,21.96,19.263,19.241,56.596]
[1688321310475,181.736,19.254,19.242,21.982]
[1688321310785,181.736,19.254,19.234,56.616]
[1688321310982,181.736,19.254,19.237,21.988]
[1688321312189,181.736,19.254,19.232,56.622]
[1688321312365,181.736,19.254,19.237,21.988]
[1688321313887,181.736,19.254,19.24,21.985]
[1688321314185,181.736,19.254,19.241,55.0]
[1688321314886,181.736,19.254,19.234,56.616]
[1688321314887,181.736,19.254,19.238,21.986]
[1688321315086,55.0,19.253,19.238,21.986]
[1688321315282,181.776,19.249,19.238,21.986]
[1688321315479,78.55,19.249,19.238,21.986]
[1688321315971,78.55,19.249,19.239,55.0]
[1688321316166,78.55,19.249,19.239,76.985]
[1688321317079,21.975,19.249,19.239,76.985]
[1688321317673,21.975,19.249,19.239,170.3826]
[1688321322067,56.565,19.253,19.239,170.3826]
[1688321322392,21.97,19.254,19.24,22.54]
[1688321322591,21.97,19.254,19.244,78.568]
[1688321322781,21.97,19.254,19.245,75.0]
[1688321322979,21.97,19.254,19.247,21.976]
[1688321323183,21.97,19.254,19.248,55.0]
[1688321323491,21.97,19.254,19.249,21.974]
[1688321323784,21.97,19.254,19.248,55.0]
[1688321323785,21.97,19.254,19.251,21.972]
[1688321323986,21.968,19.256,19.251,21.972]
[1688321326288,56.529,19.265,19.252,55.0]
[1688321326500,21.961,19.262,19.255,21.967]
[1688321326691,21.961,19.262,19.256,55.0]
[1688321326876,21.961,19.262,19.256,76.967]
[1688321329181,21.961,19.262,19.256,55.0]
[1688321331183,125.117,19.262,19.251,21.972]
[1688321332596,125.117,19.262,19.252,55.0]
[1688321332898,21.961,19.262,19.252,76.971]
[1688321336087,21.961,19.262,19.252,21.971]
[1688321336288,21.961,19.262,19.253,55.0]
[1688321336587,21.961,19.262,19.247,56.577]
[1688321336588,21.961,19.262,19.244,159.836]
[1688321336794,21.961,19.262,19.245,50.0]
[1688321336991,21.961,19.262,19.245,20.0]
[1688321337597,21.961,19.262,19.249,21.974]
[1688321337782,21.961,19.262,19.25,55.0]
[1688321338097,21.961,19.262,19.252,21.971]
[1688321339275,21.961,19.262,19.25,76.973]
[1688321339482,21.961,19.262,19.25,55.0]
[1688321339677,21.961,19.262,19.249,55.0]
[1688321341083,21.961,19.262,19.249,76.974]
[1688321342384,21.961,19.262,19.248,21.976]
[1688321342586,55.0,19.261,19.248,21.976]
[1688321342882,55.0,19.261,19.245,20.0]
[1688321342883,181.694,19.258,19.247,21.977]
[1688321344205,21.965,19.258,19.247,21.977]
[1688321344402,21.965,19.258,19.248,55.0]
[1688321344602,21.965,19.258,19.251,21.972]
[1688321345503,21.965,19.258,19.253,21.969]
[1688321347099,21.965,19.258,19.25,56.57]
[1688321347305,21.965,19.258,19.252,21.971]
[1688321347490,21.965,19.258,19.253,55.0]
[1688321347692,103.135,19.266,19.253,76.969]
[1688321348003,21.964,19.259,19.253,76.969]